fUSD/lending_fUSD_20240611
["ID","MTS","AMOUNT","RATE_DAILY","PERIOD"]
[329021202,1718064648339,-1009.153901,0.00028229,2]
[329021204,1718064648354,-45567.18742846,0.00028233,2]
[329021207,1718064648369,-4507.5887715,0.00028233,2]
[329021209,1718064648383,-160.55779962,0.00028331,2]
[329021211,1718064648398,-157.20854125,0.00028416,2]
[329021214,1718064648411,-151.0,0.00028439,2]
[329021216,1718064648424,-155.19385195,0.00028472,2]
[329021218,1718064648439,-519.99,0.00028479,2]
[329021220,1718064648453,-179.48,0.00028493,2]
[329021222,1718064648468,-157.20854125,0.00028568,2]
[329021224,1718064648482,-1009.153901,0.00028574,2]
[329021227,1718064648497,-150.78181346,0.00028599,2]
[329021229,1718064648513,-158.87102006,0.00028614,2]
[329021232,1718064648528,-150.78181346,0.00028648,2]
[329021234,1718064648539,-160.8866894,0.00028656,2]
[329021236,1718064648551,-157.20854125,0.00028666,2]
[329021238,1718064648567,-500.0,0.0002867,2]
[329021240,1718064648582,-1000.0,0.0002867,2]
[329021242,1718064648596,-2700.0,0.0002867,2]
[329021245,1718064648611,-150.52,0.0002869,2]
[329021247,1718064648631,-19700.729651,0.000287,2]
[329021249,1718064648643,-322.26350227,0.00028713,2]
[329021251,1718064648658,-154.99387401,0.00028755,2]
[329021254,1718064648675,-166.66666665,0.00028769,2]
[329021256,1718064648689,-150.4868812,0.00028771,2]
[329021258,1718064648703,-223.18715635,0.00028781,2]
[329021260,1718064648716,-155.47628626,0.00028785,2]
[329021262,1718064648729,-322.26350227,0.00028852,2]
[329021264,1718064648741,-158.87102006,0.00028909,2]
[329021267,1718064648755,-302.0,0.00028917,4]
[329021269,1718064648768,-1009.153901,0.00028918,2]
[329021271,1718064648782,-150.4868812,0.00028925,2]
[329021274,1718064648796,-1631.74997474,0.00028941,2]
[329021276,1718064648810,-157.20854125,0.00028978,2]
[329021278,1718064648823,-150.52,0.0002899,2]
[329021280,1718064648838,-150.52,0.0002899,2]
[329021283,1718064648851,-157.20854125,0.00028993,2]
[329021284,1718064648865,-157.20854125,0.00028994,2]
[329021285,1718064648879,-157.20854125,0.00028997,2]
[329021286,1718064648895,-1486.22934269,0.00029,2]
[329021287,1718064648908,-4167.36702522,0.00029,2]
[329021288,1718064648921,-5000.0,0.00029,2]
[329021289,1718064648933,-222194.05027872,0.00029,2]
[329021290,1718064648947,-571.41002841,0.00029,2]
[329021291,1718064648960,-2000.0,0.00029,2]
[329021294,1718064648975,-12710.09622424,0.00029,3]
[329021296,1718064648988,-157.20854125,0.00029006,2]
[329021298,1718064649001,-3610.347277,0.0002901,2]
[329021300,1718064649014,-322.26350227,0.00029015,2]
[329021302,1718064649026,-150.4868812,0.00029016,2]
[329021305,1718064649039,-155.24195711,0.00029039,2]
[329021307,1718064649053,-1529.81816202,0.00029039,2]
[329021309,1718064649065,-364.23895739,0.00029039,2]
[329021311,1718064649078,-234.70114228,0.00029039,2]
[329021312,1718064649092,-236.1339612,0.00029039,2]
[329021313,1718064649104,-242.98912964,0.00029039,2]
[329021314,1718064649118,-155.0,0.00029039,2]
[329021315,1718064649131,-377.9482928,0.00029039,2]
[329021316,1718064649144,-785.08586126,0.00029039,2]
[329021317,1718064649156,-2366.67503742,0.00029039,2]
[329021318,1718064649169,-156.14040432,0.00029039,2]
[329021319,1718064649181,-2480.25747293,0.00029039,2]
[329021320,1718064649195,-333.87761899,0.00029039,2]
[329021321,1718064649207,-1388.61702236,0.00029039,2]
[329021322,1718064649220,-1065.50723341,0.00029039,2]
[329021323,1718064649234,-407.04296718,0.00029039,2]
[329021324,1718064649247,-181.12479512,0.00029039,2]
[329021325,1718064649261,-157.14302958,0.00029039,2]
[329021326,1718064649274,-229.72573414,0.00029039,2]
[329021327,1718064649288,-250.12031156,0.00029039,2]
[329021328,1718064649300,-163.69880593,0.00029039,2]
[329021329,1718064649313,-302.25560307,0.00029039,2]
[329021331,1718064649326,-1812.93896537,0.00029039,2]
[329021332,1718064649340,-973.64026678,0.00029039,2]
[329021333,1718064649353,-306.92224248,0.00029039,2]
[329021334,1718064649366,-156.01992126,0.00029039,2]
[329021335,1718064649379,-168.64898794,0.00029039,2]
[329021336,1718064649391,-155.40824956,0.00029039,2]
[329021338,1718064649404,-742.55272188,0.00029039,2]
[329021341,1718064649418,-201.48986089,0.00029039,2]
[329021343,1718064649431,-3494.37630934,0.00029039,2]
[329021345,1718064649445,-155.0,0.00029039,2]
[329021347,1718064649458,-155.33073223,0.00029039,2]
[329021351,1718064649473,-269.50781113,0.0002904,2]
[329021354,1718064649485,-6764.48938533,0.0002904,2]
[329021357,1718064649497,-150.0,0.0002904,2]
[329021360,1718064649512,-150.0,0.0002904,10]
[329021363,1718064649525,-150.0,0.0002904,10]
[329021368,1718064649537,-509.57511885,0.00029041,4]
[329021371,1718064649551,-508.77875177,0.00029041,4]
[329021374,1718064649564,-512.43055594,0.00029041,4]
[329021377,1718064649577,-498.6502795,0.00029041,4]
[329021380,1718064649590,-514.99528228,0.00029041,4]
[329021383,1718064649603,-169.99106151,0.00029041,4]
[329021385,1718064649616,-156.54644938,0.00029041,4]
[329021388,1718064649628,-503.10527079,0.00029041,4]
[329021391,1718064649641,-500.0,0.00029041,4]
[329021392,1718064649654,-575.37240135,0.00029041,4]
[329021393,1718064649666,-525.90407821,0.00029041,4]
[329021394,1718064649679,-521.72487253,0.00029041,4]
[329021395,1718064649692,-528.32690611,0.00029041,4]
[329021396,1718064649704,-516.18531618,0.00029041,4]
[329021397,1718064649717,-508.18930495,0.00029041,4]
[329021398,1718064649730,-505.52682262,0.00029041,4]
[329021399,1718064649744,-544.70595251,0.00029041,4]
[329021400,1718064649758,-514.75232569,0.00029041,4]
[329021401,1718064649771,-244.54994112,0.00029041,4]
[329021402,1718064649785,-500.0,0.00029041,4]
[329021403,1718064649798,-550.99222277,0.00029041,4]
[329021404,1718064649812,-314.09891412,0.00029041,4]
[329021405,1718064649827,-513.10199135,0.00029041,4]
[329021406,1718064649840,-512.85497937,0.00029041,4]
[329021407,1718064649853,-519.04375438,0.00029041,4]
[329021408,1718064649867,-512.26876176,0.00029041,4]
[329021409,1718064649880,-524.80222361,0.00029041,4]
[329021410,1718064649894,-513.00371313,0.00029041,4]
[329021411,1718064649908,-529.58404505,0.00029041,4]
[329021412,1718064649922,-505.06551054,0.00029041,4]
[329021413,1718064649937,-533.07394736,0.00029041,4]
[329021414,1718064649949,-532.56572991,0.00029041,4]
[329021415,1718064649963,-540.82357735,0.00029041,4]
[329021416,1718064649974,-500.0,0.00029041,4]
[329021417,1718064649984,-514.35893658,0.00029041,4]
[329021418,1718064649996,-496.80793903,0.00029041,4]
[329021419,1718064650008,-500.0,0.00029041,4]
[329021420,1718064650021,-510.06915273,0.00029041,4]
[329021421,1718064650034,-504.75534393,0.00029041,4]
[329021422,1718064650269,-519.69,0.00029041,4]
[329021423,1718064650285,-518.13858742,0.00029041,4]
[329021424,1718064650296,-519.69,0.00029041,4]
[329021425,1718064650308,-519.69,0.00029041,4]
[329021426,1718064650319,-519.69,0.00029041,4]
[329021427,1718064650331,-519.69,0.00029041,4]
[329021428,1718064650341,-519.69,0.00029041,4]
[329021429,1718064650353,-519.69,0.00029041,4]
[329021430,1718064650363,-519.69,0.00029041,4]
[329021431,1718064650376,-509.61409094,0.00029041,4]
[329021432,1718064650386,-519.69,0.00029041,4]
[329021433,1718064650396,-155.0,0.00029041,4]
[329021434,1718064650407,-300.78806884,0.00029041,4]
[329021435,1718064650419,-500.0,0.00029041,4]
[329021436,1718064650431,-507.85509951,0.00029041,4]
[329021437,1718064650441,-500.0,0.00029041,4]
[329021438,1718064650451,-276.32,0.00029041,4]
[329021439,1718064650461,-513.14428029,0.00029041,4]
[329021440,1718064650474,-500.0,0.00029041,4]
[329021441,1718064650484,-382.89,0.00029041,4]
[329021442,1718064650494,-500.0,0.00029041,4]
[329021443,1718064650504,-512.99953472,0.00029041,4]
[329021444,1718064650514,-500.0,0.00029041,4]
[329021445,1718064650525,-500.0,0.00029041,4]
[329021446,1718064650536,-500.0,0.00029041,4]
[329021447,1718064650546,-500.0,0.00029041,4]
[329021448,1718064650558,-486.2,0.00029041,4]
[329021449,1718064650574,-500.0,0.00029041,4]
[329021450,1718064650584,-500.0,0.00029041,4]
[329021451,1718064650594,-263.56488132,0.00029041,4]
[329021452,1718064650604,-568.91457633,0.00029041,4]
[329021453,1718064650615,-500.0,0.00029041,4]
[329021454,1718064650625,-500.0,0.00029041,4]
[329021455,1718064650636,-500.0,0.00029041,4]
[329021456,1718064650646,-500.0,0.00029041,4]
[329021457,1718064650657,-180.81919405,0.00029041,4]
[329021458,1718064650667,-513.48899229,0.00029041,4]
[329021459,1718064650677,-605.45,0.00029041,4]
[329021460,1718064650688,-605.45,0.00029041,4]
[329021461,1718064650698,-605.45,0.00029041,4]
[329021462,1718064650708,-605.45,0.00029041,4]
[329021463,1718064650718,-605.45,0.00029041,4]
[329021464,1718064650728,-605.45,0.00029041,4]
[329021465,1718064650738,-605.45,0.00029041,4]
[329021466,1718064650747,-605.45,0.00029041,4]
[329021467,1718064650757,-605.45,0.00029041,4]
[329021468,1718064650767,-500.0,0.00029041,4]
[329021469,1718064650777,-500.0,0.00029041,4]
[329021470,1718064650787,-500.0,0.00029041,4]
[329021471,1718064650799,-500.0,0.00029041,4]
[329021472,1718064650810,-500.0,0.00029041,4]
[329021473,1718064650822,-500.0,0.00029041,4]
[329021474,1718064650833,-500.0,0.00029041,4]
[329021475,1718064650845,-391.2,0.00029041,4]
[329021476,1718064650856,-513.78241099,0.00029041,4]
[329021477,1718064650867,-452.40770409,0.00029041,4]
[329021478,1718064650876,-500.0,0.00029041,4]
[329021479,1718064650887,-522.42031361,0.00029041,4]
[329021480,1718064650897,-564.69691151,0.00029041,4]
[329021481,1718064650907,-500.0,0.00029041,4]
[329021482,1718064650918,-500.0,0.00029041,4]
[329021483,1718064650927,-500.0,0.00029041,4]
[329021484,1718064650938,-500.0,0.00029041,4]
[329021485,1718064650948,-500.0,0.00029041,4]
[329021486,1718064650958,-500.0,0.00029041,4]
[329021487,1718064650968,-500.0,0.00029041,4]
[329021488,1718064650978,-500.0,0.00029041,4]
[329021489,1718064650988,-500.0,0.00029041,4]
[329021490,1718064650998,-500.0,0.00029041,4]
[329021491,1718064651008,-500.0,0.00029041,4]
[329021492,1718064651017,-303.70766195,0.00029041,4]
[329021493,1718064651028,-263.29930575,0.00029041,4]
[329021494,1718064651038,-500.0,0.00029041,4]
[329021495,1718064651049,-500.0,0.00029041,4]
[329021496,1718064651060,-500.0,0.00029041,4]
[329021497,1718064651071,-446.10559251,0.00029041,4]
[329021498,1718064651081,-500.0,0.00029041,4]
[329021499,1718064651091,-299.48308507,0.00029041,4]
[329021500,1718064651102,-500.0,0.00029041,4]
[329021501,1718064651112,-500.0,0.00029041,4]
[329021502,1718064651125,-322.37026014,0.00029041,4]
[329021503,1718064651135,-935.33,0.00029041,4]
[329021504,1718064651146,-935.33,0.00029041,4]
[329021505,1718064651156,-935.33,0.00029041,4]
[329021506,1718064651167,-935.33,0.00029041,4]
[329021507,1718064651178,-935.33,0.00029041,4]
[329021508,1718064651188,-935.33,0.00029041,4]
[329021509,1718064651199,-935.33,0.00029041,4]
[329021510,1718064651210,-500.0,0.00029041,4]
[329021511,1718064651220,-500.0,0.00029041,4]
[329021512,1718064651231,-935.33,0.00029041,4]
[329021513,1718064651242,-500.0,0.00029041,4]
[329021514,1718064651252,-935.33,0.00029041,4]
[329021515,1718064651262,-500.0,0.00029041,4]
[329021516,1718064651273,-500.0,0.00029041,4]
[329021517,1718064651284,-500.0,0.00029041,4]
[329021518,1718064651296,-500.0,0.00029041,4]
[329021519,1718064651308,-500.0,0.00029041,4]
[329021520,1718064651318,-500.0,0.00029041,4]
[329021521,1718064651328,-370.89552892,0.00029041,4]
[329021522,1718064651339,-500.0,0.00029041,4]
[329021523,1718064651349,-500.0,0.00029041,4]
[329021524,1718064651359,-500.0,0.00029041,4]
[329021525,1718064651370,-500.0,0.00029041,4]
[329021526,1718064651382,-631.27,0.00029041,4]
[329021527,1718064651393,-500.0,0.00029041,4]
[329021528,1718064651404,-500.0,0.00029041,4]
[329021529,1718064651414,-500.0,0.00029041,4]
[329021530,1718064651427,-500.0,0.00029041,4]
[329021531,1718064651438,-500.0,0.00029041,4]
[329021532,1718064651450,-500.0,0.00029041,4]
[329021533,1718064651461,-500.0,0.00029041,4]
[329021534,1718064651475,-500.0,0.00029041,4]
[329021535,1718064651487,-500.0,0.00029041,4]
[329021536,1718064651497,-500.0,0.00029041,4]
[329021537,1718064651510,-500.0,0.00029041,4]
[329021538,1718064651520,-500.0,0.00029041,4]
[329021539,1718064651531,-500.0,0.00029041,4]
[329021540,1718064651543,-209.79,0.00029041,4]
[329021541,1718064651556,-500.0,0.00029041,4]
[329021542,1718064651568,-500.0,0.00029041,4]
[329021543,1718064651580,-287.37492868,0.00029041,4]
[329021544,1718064651590,-500.0,0.00029041,4]
[329021545,1718064651601,-250.0,0.00029041,4]
[329021546,1718064651612,-500.0,0.00029041,4]
[329021547,1718064651622,-500.0,0.00029041,4]
[329021548,1718064651632,-500.0,0.00029041,4]
[329021549,1718064651643,-500.0,0.00029041,4]
[329021550,1718064651653,-261.51931575,0.00029041,4]
[329021551,1718064651664,-500.0,0.00029041,4]
[329021552,1718064651674,-500.0,0.00029041,4]
[329021553,1718064651684,-500.0,0.00029041,4]
[329021554,1718064651695,-549.26,0.00029041,4]
[329021555,1718064651706,-500.0,0.00029041,4]
[329021556,1718064651717,-500.0,0.00029041,4]
[329021557,1718064651727,-500.0,0.00029041,4]
[329021558,1718064651737,-500.0,0.00029041,4]
[329021559,1718064651748,-500.0,0.00029041,4]
[329021560,1718064651758,-500.0,0.00029041,4]
[329021561,1718064651770,-508.52073101,0.00029041,4]
[329021562,1718064651781,-500.0,0.00029041,4]
[329021563,1718064651792,-514.11664591,0.00029041,4]
[329021564,1718064651805,-513.17417002,0.00029041,4]
[329021565,1718064651815,-512.74881986,0.00029041,4]
[329021566,1718064651826,-500.0,0.00029041,4]
[329021567,1718064651838,-511.38539852,0.00029041,4]
[329021568,1718064651851,-500.0,0.00029041,4]
[329021569,1718064651863,-561.38112734,0.00029041,4]
[329021570,1718064651874,-500.0,0.00029041,4]
[329021571,1718064651886,-500.0,0.00029041,4]
[329021572,1718064651897,-500.0,0.00029041,4]
[329021573,1718064651908,-513.96046957,0.00029041,4]
[329021574,1718064651920,-500.0,0.00029041,4]
[329021575,1718064651931,-422.31330984,0.00029041,4]
[329021576,1718064651943,-500.0,0.00029041,4]
[329021577,1718064651954,-500.0,0.00029041,4]
[329021578,1718064651967,-502.51324692,0.00029041,4]
[329021579,1718064651979,-577.24858833,0.00029041,4]
[329021580,1718064651991,-500.0,0.00029041,4]
[329021581,1718064652002,-500.0,0.00029041,4]
[329021582,1718064652014,-374.26747195,0.00029041,4]
[329021583,1718064652025,-503.12168616,0.00029041,4]
[329021584,1718064652036,-500.0,0.00029041,4]
[329021585,1718064652048,-250.01595396,0.00029041,4]
[329021586,1718064652060,-500.0,0.00029041,4]
[329021587,1718064652070,-500.0,0.00029041,4]
[329021588,1718064652081,-516.50343861,0.00029041,4]
[329021589,1718064652092,-500.0,0.00029041,4]
[329021590,1718064652103,-500.0,0.00029041,4]
[329021591,1718064652113,-498.72835881,0.00029041,4]
[329021592,1718064652124,-500.0,0.00029041,4]
[329021593,1718064652136,-500.0,0.00029041,4]
[329021594,1718064652147,-500.0,0.00029041,4]
[329021595,1718064652158,-500.0,0.00029041,4]
[329021596,1718064652169,-500.0,0.00029041,4]
[329021597,1718064652179,-500.0,0.00029041,4]
[329021598,1718064652190,-500.0,0.00029041,4]
[329021599,1718064652202,-500.0,0.00029041,4]
[329021600,1718064652212,-500.0,0.00029041,4]
[329021601,1718064652223,-500.0,0.00029041,4]
[329021602,1718064652234,-500.0,0.00029041,4]
[329021603,1718064652245,-160.41008559,0.00029041,4]
[329021604,1718064652256,-500.0,0.00029041,4]
[329021605,1718064652266,-500.0,0.00029041,4]
[329021606,1718064652277,-500.0,0.00029041,4]
[329021607,1718064652288,-500.0,0.00029041,4]
[329021608,1718064652299,-500.0,0.00029041,4]
[329021609,1718064652310,-500.0,0.00029041,4]
[329021610,1718064652321,-500.0,0.00029041,4]
[329021611,1718064652332,-307.76624179,0.00029041,4]
[329021612,1718064652344,-500.0,0.00029041,4]
[329021613,1718064652355,-500.0,0.00029041,4]
[329021614,1718064652365,-500.0,0.00029041,4]
[329021615,1718064652376,-500.0,0.00029041,4]
[329021616,1718064652386,-500.0,0.00029041,4]
[329021617,1718064652397,-183.95887513,0.00029041,4]
[329021618,1718064652407,-183.97131905,0.00029041,4]
[329021619,1718064652418,-315.38000795,0.00029041,4]
[329021620,1718064652429,-500.0,0.00029041,4]
[329021621,1718064652439,-500.0,0.00029041,4]
[329021622,1718064652450,-500.0,0.00029041,4]
[329021623,1718064652460,-500.0,0.00029041,4]
[329021624,1718064652473,-500.0,0.00029041,4]
[329021625,1718064652484,-587.24231062,0.00029041,4]
[329021626,1718064652494,-500.0,0.00029041,4]
[329021627,1718064652505,-553.58657175,0.00029041,4]
[329021628,1718064652518,-168.89070035,0.00029041,4]
[329021629,1718064652529,-500.0,0.00029041,4]
[329021630,1718064652539,-500.0,0.00029041,4]
[329021631,1718064652550,-500.0,0.00029041,4]
[329021632,1718064652561,-502.00210514,0.00029041,4]
[329021633,1718064652575,-500.0,0.00029041,4]
[329021634,1718064652585,-500.0,0.00029041,4]
[329021635,1718064652596,-326.96,0.00029041,4]
[329021636,1718064652607,-500.0,0.00029041,4]
[329021637,1718064652617,-500.0,0.00029041,4]
[329021638,1718064652629,-228.999309,0.00029041,4]
[329021639,1718064652640,-500.0,0.00029041,4]
[329021640,1718064652651,-500.0,0.00029041,4]
[329021641,1718064652663,-500.0,0.00029041,4]
[329021642,1718064652675,-500.0,0.00029041,4]
[329021643,1718064652686,-500.0,0.00029041,4]
[329021644,1718064652698,-500.0,0.00029041,4]
[329021645,1718064652709,-493.07398711,0.00029041,4]
[329021646,1718064652720,-500.0,0.00029041,4]
[329021647,1718064652734,-514.19746916,0.00029041,4]
[329021648,1718064652746,-159.98993201,0.00029041,4]
[329021649,1718064652759,-500.0,0.00029041,4]
[329021650,1718064652771,-500.0,0.00029041,4]
[329021651,1718064652783,-500.0,0.00029041,4]
[329021652,1718064652795,-500.0,0.00029041,4]
[329021653,1718064652806,-500.0,0.00029041,4]
[329021654,1718064652819,-500.0,0.00029041,4]
[329021655,1718064652830,-500.0,0.00029041,4]
[329021656,1718064652842,-178.88996463,0.00029041,4]
[329021657,1718064652853,-500.0,0.00029041,4]
[329021658,1718064652864,-500.0,0.00029041,4]
[329021659,1718064652875,-500.0,0.00029041,4]
[329021660,1718064652887,-500.0,0.00029041,4]
[329021661,1718064652898,-500.0,0.00029041,4]
[329021662,1718064652911,-500.0,0.00029041,4]
[329021663,1718064652923,-412.09903339,0.00029041,4]
[329021664,1718064652935,-500.0,0.00029041,4]
[329021665,1718064652948,-500.0,0.00029041,4]
[329021666,1718064652959,-535.46684539,0.00029041,4]
[329021667,1718064652970,-456.2723144,0.00029041,4]
[329021668,1718064652981,-500.0,0.00029041,2]
[329021669,1718064652991,-307.17492458,0.00029041,4]
[329021670,1718064653002,-500.0,0.00029041,2]
[329021671,1718064653015,-500.0,0.00029041,2]
[329021672,1718064653025,-500.0,0.00029041,2]
[329021673,1718064653037,-500.0,0.00029041,2]
[329021674,1718064653047,-314.77467748,0.00029041,4]
[329021675,1718064653060,-500.0,0.00029041,2]
[329021676,1718064653071,-500.0,0.00029041,2]
[329021677,1718064653082,-184.39660772,0.00029041,4]
[329021678,1718064653095,-500.0,0.00029041,2]
[329021679,1718064653109,-500.0,0.00029041,2]
[329021680,1718064653120,-577.52825929,0.00029041,4]
[329021681,1718064653130,-184.12997552,0.00029041,4]
[329021682,1718064653142,-500.0,0.00029041,4]
[329021683,1718064653154,-500.0,0.00029041,4]
[329021684,1718064653165,-500.0,0.00029041,4]
[329021685,1718064653177,-500.0,0.00029041,4]
[329021686,1718064653188,-500.0,0.00029041,4]
[329021687,1718064653199,-500.0,0.00029041,4]
[329021688,1718064653211,-491.05213041,0.00029041,4]
[329021689,1718064653223,-500.0,0.00029041,4]
[329021690,1718064653235,-500.0,0.00029041,4]
[329021691,1718064653247,-500.0,0.00029041,4]
[329021692,1718064653258,-500.0,0.00029041,4]
[329021693,1718064653270,-500.0,0.00029041,4]
[329021694,1718064653281,-500.0,0.00029041,4]
[329021695,1718064653293,-500.0,0.00029041,4]
[329021696,1718064653305,-500.0,0.00029041,4]
[329021697,1718064653317,-500.0,0.00029041,4]
[329021698,1718064653328,-500.0,0.00029041,4]
[329021699,1718064653340,-500.0,0.00029041,4]
[329021700,1718064653350,-500.0,0.00029041,4]
[329021701,1718064653361,-500.0,0.00029041,4]
[329021702,1718064653373,-184.20219283,0.00029041,4]
[329021703,1718064653384,-500.0,0.00029041,4]
[329021704,1718064653396,-500.0,0.00029041,4]
[329021705,1718064653407,-500.0,0.00029041,4]
[329021706,1718064653419,-500.0,0.00029041,4]
[329021707,1718064653431,-500.0,0.00029041,4]
[329021708,1718064653443,-500.0,0.00029041,4]
[329021709,1718064653455,-500.0,0.00029041,4]
[329021710,1718064653467,-500.0,0.00029041,4]
[329021711,1718064653481,-500.0,0.00029041,4]
[329021712,1718064653492,-516.33002548,0.00029041,4]
[329021713,1718064653503,-500.0,0.00029041,4]
[329021714,1718064653515,-500.0,0.00029041,4]
[329021715,1718064653527,-500.0,0.00029041,4]
[329021716,1718064653538,-500.0,0.00029041,4]
[329021717,1718064653552,-501.18485014,0.00029041,4]
[329021718,1718064653563,-535.80671273,0.00029041,4]
[329021719,1718064653576,-509.18838865,0.00029041,4]
[329021720,1718064653588,-508.81572959,0.00029041,4]
[329021721,1718064653600,-500.0,0.00029041,4]
[329021722,1718064653611,-500.0,0.00029041,4]
[329021723,1718064653623,-500.0,0.00029041,4]
[329021724,1718064653634,-500.0,0.00029041,4]
[329021725,1718064653646,-500.0,0.00029041,4]
[329021726,1718064653657,-500.0,0.00029041,4]
[329021727,1718064653668,-579.72,0.00029041,4]
[329021728,1718064653680,-500.0,0.00029041,4]
[329021729,1718064653692,-500.0,0.00029041,4]
[329021730,1718064653704,-500.0,0.00029041,4]
[329021731,1718064653716,-500.0,0.00029041,4]
[329021732,1718064653728,-500.0,0.00029041,4]
[329021733,1718064653739,-500.0,0.00029041,4]
[329021734,1718064653751,-500.0,0.00029041,4]
[329021735,1718064653763,-442.35584971,0.00029041,4]
[329021736,1718064653776,-500.0,0.00029041,4]
[329021737,1718064653786,-500.0,0.00029041,4]
[329021738,1718064653800,-500.0,0.00029041,4]
[329021739,1718064653811,-500.0,0.00029041,4]
[329021740,1718064653822,-500.0,0.00029041,4]
[329021741,1718064653949,-500.0,0.00029041,4]
[329021742,1718064653982,-370.0,0.00029041,4]
[329021743,1718064653993,-500.0,0.00029041,4]
[329021744,1718064654005,-500.0,0.00029041,4]
[329021745,1718064654016,-500.0,0.00029041,4]
[329021746,1718064654028,-500.0,0.00029041,4]
[329021747,1718064654038,-500.0,0.00029041,4]
[329021748,1718064654049,-500.0,0.00029041,4]
[329021749,1718064654062,-500.0,0.00029041,4]
[329021750,1718064654076,-500.0,0.00029041,4]
[329021751,1718064654087,-500.0,0.00029041,4]
[329021752,1718064654098,-500.0,0.00029041,4]
[329021753,1718064654108,-165.05152228,0.00029041,4]
[329021754,1718064654120,-500.0,0.00029041,4]
[329021755,1718064654131,-500.0,0.00029041,4]
[329021756,1718064654143,-500.0,0.00029041,4]
[329021757,1718064654154,-500.0,0.00029041,4]
[329021758,1718064654165,-500.0,0.00029041,4]
[329021759,1718064654176,-500.0,0.00029041,4]
[329021760,1718064654187,-500.0,0.00029041,4]
[329021761,1718064654198,-500.0,0.00029041,4]
[329021762,1718064654209,-500.0,0.00029041,4]
[329021763,1718064654220,-500.0,0.00029041,4]
[329021764,1718064654231,-500.0,0.00029041,4]
[329021765,1718064654242,-529.44635471,0.00029041,4]
[329021766,1718064654253,-500.0,0.00029041,4]
[329021767,1718064654263,-500.0,0.00029041,4]
[329021768,1718064654275,-500.0,0.00029041,4]
[329021769,1718064654288,-500.0,0.00029041,4]
[329021770,1718064654299,-500.0,0.00029041,4]
[329021771,1718064654312,-500.0,0.00029041,4]
[329021772,1718064654324,-507.39515255,0.00029041,4]
[329021773,1718064654335,-500.0,0.00029041,4]
[329021774,1718064654347,-437.11011358,0.00029041,4]
[329021775,1718064654359,-500.0,0.00029041,4]
[329021776,1718064654371,-500.0,0.00029041,4]
[329021777,1718064654382,-248.02937267,0.00029041,4]
[329021778,1718064654393,-500.0,0.00029041,4]
[329021779,1718064654404,-500.0,0.00029041,4]
[329021780,1718064654415,-835.37,0.00029041,4]
[329021781,1718064654427,-500.0,0.00029041,4]
[329021782,1718064654439,-835.37,0.00029041,4]
[329021783,1718064654450,-520.09910313,0.00029041,4]
[329021784,1718064654461,-835.37,0.00029041,4]
[329021785,1718064654475,-500.0,0.00029041,4]
[329021786,1718064654486,-835.37,0.00029041,4]
[329021787,1718064654498,-500.0,0.00029041,4]
[329021788,1718064654510,-835.37,0.00029041,4]
[329021789,1718064654521,-500.0,0.00029041,4]
[329021790,1718064654532,-835.37,0.00029041,4]
[329021791,1718064654545,-500.0,0.00029041,4]
[329021792,1718064654557,-835.37,0.00029041,4]
[329021793,1718064654571,-500.0,0.00029041,4]
[329021794,1718064654582,-835.37,0.00029041,4]